bitfinex-derivatives/quotes_BTCF0:USTF0_20251009
["timestamp","ask_amount","ask_price","bid_price","bid_amount"]
[1760017900313,6.035e-05,123040.0,123030.0,1.19193931]
[1760017901009,6.035e-05,123040.0,123030.0,1.11065091]
[1760017901213,6.035e-05,123040.0,123030.0,0.35693091]
[1760017901410,6.035e-05,123040.0,123030.0,1.11065091]
[1760017901611,0.76086035,123040.0,123030.0,0.03502]
[1760017901909,0.76086035,123040.0,123030.0,0.7131]
[1760017902114,0.76086035,123040.0,123030.0,0.84581]
[1760017902314,0.36086035,123040.0,123030.0,0.84581]
[1760017902713,0.36086035,123040.0,123030.0,0.84481]
[1760017904518,0.76086035,123040.0,123030.0,0.03402]
[1760017904820,0.76086035,123040.0,123020.0,0.03402]
[1760017905015,0.3608,123030.0,123020.0,0.63458]
[1760017905316,0.3608,123030.0,123010.0,0.03361]
[1760017905317,1.02395091,123030.0,123010.0,0.03361]
[1760017905513,0.7608,123020.0,123000.0,0.03593]
[1760017905814,0.36086035,123010.0,123000.0,0.03361]
[1760017906015,0.36086035,123010.0,123000.0,0.35132091]
[1760017906718,0.36086035,123010.0,123000.0,1.10496091]
[1760017906921,0.76086035,123010.0,123000.0,0.08917]
[1760017907119,0.76086035,123010.0,123000.0,0.03461]
[1760017907416,0.76086035,123010.0,123000.0,0.78821]
[1760017907616,0.76086035,123010.0,123000.0,0.03461]
[1760017908121,0.76086035,123010.0,123000.0,0.001]
[1760017908418,1.02401126,123010.0,123000.0,0.001]
[1760017909421,0.76086035,123010.0,123000.0,0.001]
[1760017910821,1.02401126,123010.0,123000.0,0.001]
[1760017911521,1.77765126,123010.0,123000.0,0.001]
[1760017911922,1.02401126,123010.0,123000.0,0.001]
[1760017912124,1.77769126,123010.0,123000.0,0.001]
[1760017912519,1.51454035,123010.0,123000.0,0.001]
[1760017913323,1.02401126,123010.0,123000.0,0.001]
[1760017913520,1.77769126,123010.0,122980.0,0.03361]
[1760017913729,0.7216,122990.0,122980.0,0.03361]
[1760017914024,0.7216,122990.0,122980.0,0.08817]
[1760017914231,0.7216,122990.0,122980.0,0.83260241]
[1760017914521,0.3608,123000.0,122980.0,0.83260241]
[1760017914728,0.3608,123000.0,122990.0,0.35132091]
[1760017914926,0.3608,123000.0,122990.0,0.43259571]
[1760017915226,0.3608,123000.0,122990.0,1.10496091]
[1760017915927,0.3608,123000.0,122990.0,0.35132091]
[1760017916139,0.3608,123000.0,122990.0,1.10500091]
[1760017916523,0.3608,123000.0,122990.0,0.35132091]
[1760017916717,0.3608,123000.0,122990.0,1.10500091]
[1760017917127,0.3608,123000.0,122990.0,0.35132091]
[1760017917329,0.3608,123000.0,122990.0,1.10500091]
[1760017917922,0.3608,123000.0,122990.0,1.10700091]
[1760017918735,0.3608,123000.0,122990.0,1.10800091]
[1760017919025,0.3608,123000.0,122990.0,0.35432091]
[1760017919226,0.3608,123000.0,122990.0,0.34380091]
[1760017919529,0.3608,123000.0,122980.0,0.1148874]
[1760017919530,0.0014,122990.0,122920.0,0.03361]
[1760017919730,2.02984,122990.0,122930.0,0.03361]
[1760017919924,0.26315091,122940.0,122920.0,0.03361]
[1760017920227,0.26315091,122940.0,122910.0,0.03361]
[1760017920431,0.26315091,122940.0,122900.0,0.03361]
[1760017920432,0.26315091,122920.0,122900.0,0.03361]
[1760017920643,0.34456742,122910.0,122900.0,0.03361]
[1760017921133,0.40875799,122910.0,122890.0,0.03361]
[1760017921431,0.0813344,122900.0,122890.0,0.08817]
[1760017921725,0.0813344,122900.0,122890.0,0.03361]
[1760017921927,1.46608531,122900.0,122870.0,0.03361]
[1760017922129,0.7216,122880.0,122870.0,0.03361]
[1760017922433,0.72169532,122880.0,122870.0,0.08817]
[1760017922627,0.72169532,122880.0,122870.0,1.10504091]
[1760017922927,0.72169532,122880.0,122870.0,1.50504091]
[1760017923228,0.36089532,122880.0,122870.0,0.75132091]
[1760017923429,9.532e-05,122880.0,122870.0,0.75132091]
[1760017923624,9.532e-05,122880.0,122870.0,1.94727511]
[1760017923936,0.3608,122900.0,122870.0,1.94727511]
[1760017923937,0.3608,122900.0,122890.0,0.08817]
[1760017924132,0.3608,122930.0,122910.0,0.08817]
[1760017924334,0.3608,122930.0,122920.0,0.78299498]
[1760017924531,0.3608,122930.0,122920.0,1.53679498]
[1760017924827,0.3608,122950.0,122940.0,0.08817]
[1760017925034,0.3608,122960.0,122950.0,0.03361]
[1760017925228,0.38246685,122960.0,122950.0,0.32843498]
[1760017925423,5.729e-05,122960.0,122950.0,0.62325996]
[1760017925824,5.729e-05,122960.0,122950.0,3.11291498]
[1760017926132,5.729e-05,122960.0,122950.0,0.62325996]
[1760017926437,5.729e-05,122960.0,122950.0,2.65389996]
[1760017926733,5.729e-05,122960.0,122950.0,0.03361]
[1760017926926,5.729e-05,122960.0,122950.0,2.35903498]
[1760017927127,5.729e-05,122960.0,122950.0,3.11291498]
[1760017927737,5.729e-05,122960.0,122950.0,2.35903498]
[1760017927927,5.729e-05,122960.0,122950.0,3.11291498]
[1760017928123,5.729e-05,122960.0,122950.0,3.40773996]
[1760017928327,5.729e-05,122960.0,122950.0,2.73516126]
[1760017928531,5.729e-05,122960.0,122950.0,3.48904126]
[1760017928731,5.729e-05,122960.0,122950.0,3.40773996]
[1760017929229,5.729e-05,122960.0,122950.0,0.32843498]
[1760017929432,5.729e-05,122960.0,122950.0,2.81805]
[1760017929736,5.729e-05,122960.0,122950.0,3.16743498]
[1760017929926,5.729e-05,122960.0,122950.0,1.13687498]
[1760017930235,0.36085729,122960.0,122950.0,0.08817]
[1760017930422,0.36085729,122960.0,122950.0,0.38299498]
[1760017930628,0.36085729,122960.0,122950.0,1.13683498]
[1760017931331,5.729e-05,122960.0,122950.0,1.13683498]
[1760017931731,0.36085729,122960.0,122950.0,1.13683498]
[1760017931929,0.36085729,122960.0,122950.0,0.08817]
[1760017932133,0.36085729,122960.0,122950.0,1.13683498]
[1760017932735,0.36085729,122960.0,122950.0,0.38299498]
[1760017933036,0.78247568,122960.0,122950.0,0.03461]
[1760017933429,0.78247568,122960.0,122950.0,0.59621]
[1760017933631,0.78247568,122960.0,122950.0,0.78745]
[1760017933932,0.78247568,122960.0,122950.0,0.03361]
[1760017934133,0.78247568,122960.0,122950.0,0.03461]
[1760017934327,0.86377038,122960.0,122950.0,0.03461]
[1760017934525,1.15859536,122960.0,122950.0,0.001]
[1760017934728,1.15859536,122960.0,122950.0,1e-07]
[1760017934930,1.15859536,122960.0,122940.0,0.09992]
[1760017935130,0.65562498,122950.0,122930.0,0.03361]
[1760017935326,0.65562498,122940.0,122920.0,0.03361]
[1760017935527,0.65568227,122930.0,122910.0,0.03392]
[1760017935725,0.0813344,122900.0,122890.0,0.03392]
[1760017935925,0.80299169,122900.0,122890.0,0.77504]
[1760017936331,0.80299169,122900.0,122890.0,0.03392]
[1760017936524,0.80299169,122900.0,122890.0,0.78776]
[1760017937438,0.80299169,122900.0,122890.0,0.84338]
[1760017937733,0.80299169,122900.0,122890.0,0.84438]
[1760017938127,0.80299169,122900.0,122890.0,1.13920498]
[1760017938329,0.80299169,122900.0,122890.0,1.13820498]
[1760017938833,0.80299169,122900.0,122890.0,0.84338]
[1760017939834,0.80299169,122900.0,122890.0,0.8435]
[1760017940126,0.72165729,122900.0,122890.0,0.08954]
[1760017940338,1.49781667,122900.0,122870.0,0.03392]
[1760017940532,1.01642498,122880.0,122870.0,0.03392]
[1760017940733,0.72165729,122880.0,122870.0,0.03392]
[1760017940940,0.80300489,122880.0,122870.0,0.38436498]
[1760017941143,0.80300489,122880.0,122870.0,0.03392]
[1760017941348,1.49782987,122880.0,122860.0,0.03392]
[1760017941533,0.65562498,122870.0,122860.0,0.03392]
[1760017941736,0.3608,122870.0,122860.0,0.03392]
[1760017941931,0.4421542,122870.0,122860.0,0.03392]
[1760017942441,0.73697918,122870.0,122860.0,0.03392]
[1760017942742,0.4421542,122870.0,122860.0,0.03392]
[1760017943441,0.8421542,122870.0,122860.0,0.03392]
[1760017943833,0.8421542,122870.0,122860.0,0.03892]
[1760017945532,0.4421542,122870.0,122860.0,0.09454]
[1760017945737,0.4421542,122870.0,122860.0,0.03892]
[1760017946137,0.4421542,122870.0,122860.0,0.38936498]
[1760017946541,0.4421542,122870.0,122860.0,0.38836498]
[1760017946734,0.3608,122870.0,122860.0,0.38836498]
[1760017946935,0.3608,122870.0,122860.0,1.54256498]
[1760017947141,0.44220769,122880.0,122860.0,0.78836498]
[1760017947443,0.44220769,122880.0,122870.0,0.38436498]
[1760017947444,0.36085729,122880.0,122870.0,0.38436498]
[1760017947643,0.36085729,122880.0,122870.0,1.13860498]
[1760017948240,0.44220489,122880.0,122870.0,0.38436498]
[1760017948442,0.44220489,122880.0,122870.0,0.03392]
[1760017948840,0.44220489,122880.0,122870.0,0.08954]
[1760017949146,0.44136552,122880.0,122870.0,0.38436498]
[1760017949349,0.44136552,122880.0,122870.0,1.13860498]
[1760017949650,0.44136552,122880.0,122870.0,0.78436498]
[1760017949944,0.44136552,122880.0,122870.0,1.53860498]
[1760017950141,0.36001792,122880.0,122870.0,0.78436498]
[1760017950341,0.44136552,122880.0,122870.0,0.78436498]
[1760017950549,0.44136552,122880.0,122870.0,1.53860498]
[1760017951148,0.08140489,122880.0,122870.0,1.53860498]
[1760017952035,0.08140489,122880.0,122870.0,0.78436498]
[1760017952236,0.08140489,122880.0,122870.0,0.48954]
[1760017952550,0.44220489,122880.0,122870.0,0.7882]
[1760017952746,0.44220489,122880.0,122870.0,0.84382]
[1760017953149,0.44220489,122880.0,122870.0,0.03392]
[1760017953350,0.44220489,122880.0,122870.0,0.7882]
[1760017953543,0.44220489,122880.0,122870.0,0.08954]
[1760017953743,0.44220489,122880.0,122870.0,0.84382]
[1760017953944,0.44220489,122880.0,122870.0,0.84782]
[1760017954450,0.44220489,122880.0,122870.0,0.84882]
[1760017955944,0.44220489,122880.0,122870.0,0.09454]
[1760017956143,0.44220489,122880.0,122870.0,0.84882]
[1760017956339,0.36085729,122880.0,122870.0,0.09354]
[1760017956548,0.36085729,122880.0,122870.0,1.14264498]
[1760017956775,0.36085729,122880.0,122870.0,0.38660935]
[1760017956952,0.36085729,122880.0,122870.0,0.78944437]
[1760017957246,1.05568227,122880.0,122870.0,0.03516437]
[1760017957443,0.78264136,122880.0,122870.0,0.78944437]
[1760017958449,0.78264136,122880.0,122870.0,0.03516437]
[1760017959241,0.78264136,122880.0,122870.0,0.09078437]
[1760017959451,0.78264136,122880.0,122870.0,0.84506437]
[1760017959648,0.44220489,122880.0,122870.0,0.09078437]
[1760017959843,0.44220489,122880.0,122870.0,1.13988935]
[1760017960651,0.36085729,122880.0,122870.0,1.13988935]
[1760017960847,0.44220489,122880.0,122870.0,1.13988935]
[1760017962058,0.44220489,122880.0,122870.0,0.84506437]
[1760017962248,0.46402884,122880.0,122870.0,1.13988935]
[1760017962443,0.38268124,122880.0,122870.0,1.13988935]
[1760017962754,0.36085729,122880.0,122870.0,0.38560935]
[1760017962956,0.36085729,122880.0,122870.0,1.13988935]
[1760017963257,0.36085729,122880.0,122870.0,1.22124355]
[1760017964252,0.38270464,122880.0,122870.0,1.13988935]
[1760017964446,0.38270464,122880.0,122870.0,0.38560935]
[1760017964650,0.38270464,122880.0,122870.0,1.13988935]
[1760017964847,0.38270464,122880.0,122870.0,0.38560935]
[1760017965063,0.02190464,122880.0,122870.0,0.86696355]
[1760017965254,5.729e-05,122880.0,122870.0,0.93293857]
[1760017965457,5.729e-05,122880.0,122870.0,0.86696355]
[1760017965652,0.08140489,122880.0,122870.0,1.62120355]
[1760017966155,0.44220489,122880.0,122870.0,1.62120355]
[1760017966454,0.3608,122910.0,122900.0,0.08837]
[1760017966654,0.5209414,122910.0,122900.0,1.13743498]
[1760017967760,0.5209414,122910.0,122900.0,1.13739498]
[1760017967961,0.5229414,122910.0,122900.0,0.38319498]
[1760017968163,0.5229414,122910.0,122900.0,1.13739498]
[1760017969061,0.5229414,122910.0,122900.0,0.38319498]
[1760017969264,0.5229414,122910.0,122900.0,1.13739498]
[1760017969564,0.5229414,122910.0,122900.0,0.38319498]
[1760017969958,0.4416137,122910.0,122900.0,1.13735498]
[1760017970359,0.4416137,122910.0,122900.0,0.38319498]
[1760017970559,0.3845437,122910.0,122900.0,0.38319498]
[1760017970760,0.3845437,122910.0,122900.0,1.13735498]
[1760017971063,0.3845437,122910.0,122900.0,1.21868938]
[1760017971261,0.3845437,122910.0,122900.0,0.46452938]
[1760017971461,0.3845437,122910.0,122900.0,1.21864938]
[1760017971656,0.3845437,122910.0,122900.0,0.46452938]
[1760017971861,0.0237437,122910.0,122900.0,1.21864938]
[1760017972268,0.0237437,122910.0,122900.0,0.46452938]
[1760017972465,0.0227437,122910.0,122900.0,1.21864938]
[1760017972863,0.0227437,122910.0,122900.0,0.46452938]
[1760017973366,0.0227437,122910.0,122900.0,1.13727498]
[1760017973367,0.0217437,122910.0,122900.0,1.13727498]
[1760017973961,0.0217437,122910.0,122900.0,0.38319498]
[1760017974159,0.4396137,122910.0,122900.0,0.08837]
[1760017974363,0.8721937,122910.0,122890.0,0.0339]
[1760017974665,0.8721937,122910.0,122880.0,0.32872498]
[1760017974666,0.41787,122900.0,122880.0,0.32872498]
[1760017974865,0.4396137,122900.0,122890.0,0.75404]
[1760017975365,0.8396137,122900.0,122880.0,0.0339]
[1760017975666,0.41787,122890.0,122880.0,0.08837]
[1760017975869,0.4396137,122890.0,122880.0,0.08837]
[1760017976169,0.41787,122890.0,122880.0,0.84241]
[1760017976961,0.41787,122890.0,122880.0,0.08837]
[1760017977164,0.41787,122890.0,122880.0,0.84241]
[1760017977965,0.41787,122910.0,122900.0,0.08837]
[1760017978262,0.52072179,122910.0,122900.0,0.84241]
[1760017978462,0.3608,122910.0,122900.0,0.46452938]
[1760017978667,0.4421218,122920.0,122900.0,1.21856938]
[1760017978865,0.52071408,122920.0,122910.0,1.13719498]
[1760017979064,0.52071408,122920.0,122910.0,0.84237]
[1760017979260,0.4991918,122920.0,122910.0,0.84237]
[1760017979466,0.4991918,122920.0,122910.0,1.13719498]
[1760017979872,0.4991918,122920.0,122910.0,0.38319498]
[1760017980164,0.4991918,122920.0,122910.0,1.13719498]
[1760017980571,0.4991918,122920.0,122900.0,0.0339]
[1760017980870,0.41787,122910.0,122900.0,0.46452938]
[1760017981172,0.3608,122910.0,122900.0,0.46452938]
[1760017981368,0.3608,122910.0,122900.0,1.21852938]
[1760017981568,0.3608,122910.0,122900.0,0.84233]
[1760017981569,0.41787,122910.0,122900.0,0.84233]
[1760017981769,0.41787,122910.0,122900.0,1.13715498]
[1760017982070,0.41787,122910.0,122890.0,0.32872498]
[1760017982264,0.41787,122900.0,122890.0,0.38319498]
[1760017982466,0.41787,122900.0,122880.0,0.0339]
[1760017982660,0.41787,122900.0,122880.0,0.08837]
[1760017982661,0.41787,122890.0,122880.0,0.08837]
[1760017982866,0.41787,122890.0,122880.0,0.84233]
[1760017983062,0.41787,122890.0,122880.0,0.08837]
[1760017983269,0.41787,122890.0,122880.0,0.84229]
[1760017983676,0.41787,122890.0,122880.0,0.38319498]
[1760017983971,0.41787,122890.0,122880.0,1.13711498]
[1760017984167,0.41787,122890.0,122880.0,0.84229]
[1760017984371,0.3608,122890.0,122880.0,0.46454258]
[1760017984576,0.41787,122910.0,122900.0,0.08837]
[1760017984771,0.41787,122910.0,122900.0,0.38319498]
[1760017984971,0.3608,122910.0,122900.0,1.21844938]
[1760017986074,0.3608,122910.0,122900.0,1.10593262]
[1760017986369,0.3608,122910.0,122900.0,0.08837]
[1760017986573,0.3608,122910.0,122900.0,0.84221]
[1760017986767,0.3608,122910.0,122900.0,1.10585262]
[1760017987274,0.41787,122910.0,122900.0,1.10589262]
[1760017988272,0.3608,122910.0,122900.0,1.10589262]
[1760017988476,0.3608,122910.0,122900.0,1.18722702]
[1760017988778,0.3608,122910.0,122900.0,1.10585262]
[1760017989172,0.41787,122910.0,122900.0,0.35201262]
[1760017989376,0.41787,122910.0,122900.0,1.10585262]
[1760017990375,0.41787,122910.0,122900.0,0.35201262]
[1760017990576,0.3608,122910.0,122900.0,1.10585262]
[1760017990970,0.3608,122910.0,122900.0,0.43334702]
[1760017991187,0.3608,122910.0,122900.0,1.18714702]
[1760017991574,0.3608,122910.0,122900.0,0.35201262]
[1760017991798,0.3608,122910.0,122900.0,1.10581262]
[1760017992880,0.3608,122910.0,122900.0,1.18714702]
[1760017993184,0.3608,122910.0,122900.0,0.43334702]
[1760017993374,0.3608,122910.0,122900.0,1.18710702]
[1760017993569,0.3608,122910.0,122900.0,0.35201262]
[1760017993880,0.3608,122910.0,122900.0,1.10577262]
[1760017994080,0.41709,122910.0,122900.0,0.08837]
[1760017994379,0.41709,122910.0,122900.0,1.10577262]
[1760017994683,0.41709,122910.0,122900.0,0.35201262]
[1760017994879,0.41709,122910.0,122900.0,1.10573262]
[1760017995582,0.3608,122910.0,122900.0,1.10573262]
[1760017995781,0.3608,122910.0,122900.0,1.17109939]
[1760017996077,0.3608,122910.0,122900.0,0.41737939]
[1760017996380,0.3608,122910.0,122900.0,1.17109939]
[1760017996980,0.41709,122910.0,122900.0,0.90741677]
[1760017997180,0.41709,122910.0,122900.0,0.08837]
[1760017997380,0.84967,122910.0,122880.0,0.0339]
[1760017997683,0.41709,122890.0,122880.0,0.08893]
[1760017997881,0.41709,122890.0,122870.0,0.0369]
[1760017998183,0.41709,122890.0,122880.0,0.84176]
[1760017998384,0.41709,122890.0,122880.0,0.08808]
[1760017998577,0.41709,122890.0,122880.0,0.84172]
[1760017998992,0.41709,122890.0,122870.0,0.1392296]
[1760017999178,0.41709,122880.0,122870.0,0.1942596]
[1760017999386,0.41709,122880.0,122870.0,0.09193]
[1760017999579,0.41709,122880.0,122870.0,0.84557]
[1760018000079,0.41709,122880.0,122870.0,0.84657]
[1760018000287,0.4984376,122880.0,122870.0,0.84657]
[1760018000585,0.4984376,122880.0,122870.0,0.84757]
[1760018000774,0.4984376,122880.0,122870.0,0.09393]
[1760018000976,0.8984376,122880.0,122870.0,0.005]
[1760018001377,0.8984376,122880.0,122870.0,0.001]
[1760018001577,0.8984376,122880.0,122850.0,0.10242992]
[1760018001578,0.05629,122860.0,122850.0,0.10242992]
[1760018001780,0.77789,122860.0,122850.0,0.00010032]
[1760018001980,1.44153262,122860.0,122850.0,0.00010032]
[1760018002188,1.17789,122860.0,122850.0,0.00010032]
[1760018002479,0.08747,122840.0,122830.0,0.1023296]
[1760018002674,0.1376707,122830.0,122820.0,0.1023296]
[1760018002878,0.4984707,122830.0,122820.0,0.1023296]
[1760018003083,0.8984707,122830.0,122800.0,0.93279472]
[1760018003282,0.41709,122810.0,122800.0,0.98782472]
[1760018003473,0.41709,122810.0,122800.0,0.84172]
[1760018003474,0.4171529,122810.0,122800.0,0.84172]
[1760018003878,0.4171529,122810.0,122800.0,0.08808]
[1760018004074,0.4171529,122810.0,122800.0,0.84172]
[1760018004575,0.4171529,122810.0,122800.0,0.84372]
[1760018005085,0.4171529,122810.0,122800.0,0.09008]
[1760018005282,0.4171529,122810.0,122800.0,0.8438]
[1760018006078,0.4171529,122810.0,122800.0,0.09008]
[1760018006275,0.4171529,122810.0,122800.0,0.75372]
[1760018006475,0.7779529,122810.0,122800.0,0.75672]
[1760018007985,0.7779529,122810.0,122800.0,0.003]
[1760018008378,1.44159552,122810.0,122800.0,0.003]
[1760018008575,1.1779529,122810.0,122800.0,0.003]
[1760018009282,1.1779529,122810.0,122770.0,0.03305]
[1760018009283,1.44159552,122810.0,122770.0,0.03305]
[1760018009484,0.1377105,122770.0,122760.0,0.08808]
[1760018009681,0.49861082,122770.0,122760.0,0.84192]
[1760018009876,0.49861082,122770.0,122760.0,0.08808]
[1760018010080,0.49861082,122770.0,122760.0,0.84192]
[1760018010280,0.49861082,122770.0,122750.0,0.03313907]
[1760018010478,0.41709,122760.0,122750.0,0.84200907]
[1760018010686,0.41709,122760.0,122750.0,0.08816907]
[1760018010986,0.41709,122760.0,122750.0,0.84200907]
[1760018011681,0.41709,122760.0,122750.0,8.907e-05]
[1760018012184,0.44827,122760.0,122750.0,8.907e-05]
[1760018012983,0.84827,122760.0,122750.0,8.907e-05]
[1760018013589,1.11191262,122760.0,122750.0,8.907e-05]
[1760018013885,0.0814516,122730.0,122710.0,0.03305]
[1760018014185,0.4985437,122720.0,122710.0,0.842]
[1760018014788,0.49861404,122720.0,122710.0,0.842]
[1760018015087,0.36087034,122720.0,122710.0,1.50564262]
[1760018015287,7.034e-05,122720.0,122710.0,1.11252262]
[1760018015483,7.034e-05,122720.0,122710.0,1.94794292]
[1760018015683,0.3608,122750.0,122740.0,0.08808]
[1760018015886,0.3608,122750.0,122740.0,0.35172262]
[1760018016093,0.3608,122750.0,122740.0,1.17182599]
[1760018016281,0.41709,122750.0,122740.0,0.15418337]
[1760018016486,0.41709,122750.0,122740.0,0.90818337]
[1760018016682,0.49858104,122750.0,122740.0,0.15418337]
[1760018016990,0.49858104,122750.0,122740.0,0.90822337]
[1760018017186,0.49858104,122750.0,122740.0,0.15518337]
[1760018017380,0.49858104,122750.0,122740.0,0.90922337]
[1760018017789,0.49858104,122750.0,122740.0,0.15518337]
[1760018017984,0.49858104,122750.0,122740.0,0.90926337]
[1760018018188,0.49858104,122750.0,122740.0,1.17290599]
[1760018018385,0.08149104,122750.0,122740.0,1.53370599]
[1760018018591,0.08149104,122750.0,122740.0,0.77962599]
[1760018018793,0.08149104,122750.0,122740.0,1.17190599]
[1760018019090,5.724e-05,122750.0,122740.0,1.17862599]
[1760018019591,5.724e-05,122750.0,122740.0,2.01414639]
[1760018019790,5.724e-05,122750.0,122740.0,2.01514639]
[1760018019991,5.724e-05,122750.0,122740.0,0.91598337]
[1760018020287,5.724e-05,122750.0,122740.0,1.17962599]
[1760018020489,5.724e-05,122750.0,122740.0,1.93370599]
[1760018020791,5.724e-05,122750.0,122740.0,1.53370599]
[1760018021088,5.724e-05,122750.0,122740.0,0.51598337]
[1760018021295,0.05135724,122750.0,122740.0,0.90926337]
[1760018021490,0.08149104,122750.0,122740.0,0.41882599]
[1760018021694,0.08149104,122750.0,122740.0,1.17290599]
[1760018021992,5.724e-05,122750.0,122740.0,1.18062599]
[1760018022199,5.724e-05,122750.0,122740.0,1.93470599]
[1760018022694,5.724e-05,122750.0,122740.0,0.77962599]
[1760018022892,5.724e-05,122750.0,122740.0,1.53370599]
[1760018023093,5.724e-05,122750.0,122740.0,0.77962599]
[1760018023293,5.724e-05,122750.0,122740.0,1.17286599]
[1760018023491,5.724e-05,122750.0,122740.0,1.17290599]
[1760018023890,5.724e-05,122750.0,122740.0,0.41882599]
[1760018024396,5.724e-05,122750.0,122740.0,0.81882599]
[1760018024593,5.724e-05,122750.0,122740.0,0.90026639]
[1760018024792,5.724e-05,122750.0,122740.0,2.01510639]
[1760018025194,5.724e-05,122750.0,122740.0,1.26106639]
[1760018025393,0.4947472,122790.0,122780.0,0.08809]
[1760018025595,0.4422072,122790.0,122780.0,0.95541262]
[1760018025892,0.4422072,122790.0,122780.0,1.10577262]
[1760018026400,0.44226901,122790.0,122780.0,1.10577262]
[1760018026589,0.49580901,122790.0,122780.0,0.35173262]
[1760018026795,0.49580901,122790.0,122780.0,1.10577262]
[1760018027294,0.49680901,122790.0,122780.0,0.84213]
[1760018027496,0.49680901,122790.0,122780.0,1.10577262]
[1760018027698,0.49680901,122790.0,122780.0,1.17059767]
[1760018027898,0.49580901,122790.0,122780.0,1.17059767]
[1760018028099,0.36186181,122790.0,122780.0,0.41655767]
[1760018028601,0.36086181,122790.0,122780.0,0.15291505]
[1760018028798,0.44226901,122790.0,122780.0,0.90691505]
[1760018029012,0.44226901,122790.0,122780.0,0.41655767]
[1760018029200,0.44226901,122790.0,122780.0,1.17051767]
[1760018029691,0.44226901,122790.0,122780.0,0.41655767]
[1760018029891,0.44226901,122790.0,122780.0,1.17051767]
[1760018030097,0.36086181,122790.0,122780.0,1.57051767]
[1760018030304,0.36086181,122790.0,122780.0,1.65193157]
[1760018030598,6.181e-05,122790.0,122780.0,1.25877157]
[1760018030808,6.181e-05,122790.0,122780.0,2.01269157]
[1760018031196,6.181e-05,122790.0,122780.0,0.99512895]
[1760018031395,0.08146901,122790.0,122780.0,1.17735767]
[1760018031700,0.08146901,122790.0,122780.0,0.77735767]
[1760018031896,0.44226901,122790.0,122780.0,1.17047767]
[1760018032092,0.08146901,122790.0,122780.0,1.17047767]
[1760018032498,0.08146901,122790.0,122780.0,1.17043767]
[1760018032698,0.08146901,122790.0,122780.0,0.41655767]
[1760018032904,0.08146901,122790.0,122780.0,1.17043767]
[1760018033996,0.08146901,122790.0,122780.0,1.25185157]
[1760018034497,6.181e-05,122790.0,122780.0,0.49797157]
[1760018034697,0.08146901,122790.0,122780.0,1.17039767]
[1760018035093,6.181e-05,122790.0,122780.0,1.25081157]
[1760018035397,0.08146901,122790.0,122780.0,1.25081157]
[1760018035600,0.08146901,122790.0,122780.0,0.41555767]
[1760018036103,0.08146901,122790.0,122780.0,1.16935767]
[1760018036292,6.181e-05,122790.0,122780.0,0.41555767]
[1760018036498,6.181e-05,122790.0,122780.0,1.65077157]
[1760018036699,0.08146901,122790.0,122780.0,1.65077157]
[1760018039203,0.08146901,122790.0,122780.0,1.25777157]
[1760018039403,0.08146901,122790.0,122780.0,2.01149157]
[1760018039805,6.181e-05,122790.0,122780.0,2.01149157]
[1760018040098,0.08146901,122790.0,122780.0,2.01149157]
[1760018040307,0.08146901,122790.0,122780.0,1.17635767]
[1760018040498,0.08146901,122790.0,122780.0,1.93003767]
[1760018040804,0.08146901,122790.0,122780.0,1.17635767]
[1760018041201,0.08146901,122790.0,122780.0,2.01145157]
[1760018042006,0.08146901,122790.0,122780.0,1.17635767]
[1760018042207,0.08146901,122790.0,122780.0,1.92999767]
[1760018042395,0.08146901,122790.0,122780.0,1.17635767]
[1760018042601,0.08146901,122790.0,122780.0,1.92999767]
[1760018042906,0.08146901,122790.0,122780.0,2.01141157]
[1760018044706,0.08146901,122790.0,122780.0,1.17635767]
[1760018044903,0.08146901,122790.0,122780.0,1.92991767]
[1760018045299,0.08146901,122790.0,122780.0,0.41555767]
[1760018045506,0.08146901,122790.0,122780.0,0.15191505]
[1760018045507,0.49480901,122790.0,122780.0,0.15191505]
[1760018045802,0.89480901,122790.0,122780.0,0.15191505]
[1760018046002,0.89480901,122790.0,122780.0,0.90547505]
[1760018046199,0.05254,122770.0,122760.0,0.03287]
[1760018046402,0.84182,122770.0,122750.0,0.03287]
[1760018046596,0.41334,122760.0,122750.0,0.08809]
[1760018046799,0.41334,122760.0,122750.0,0.84161]
[1760018048101,0.41334,122760.0,122750.0,1.13729267]
[1760018048800,0.41334,122760.0,122750.0,0.38577267]
[1760018049000,0.41334,122760.0,122750.0,1.13925267]
[1760018050503,0.41334,122760.0,122750.0,0.84357]
[1760018050704,0.4422271,122760.0,122750.0,1.13925267]
[1760018051710,0.4943271,122760.0,122750.0,1.13929267]
[1760018052009,0.3608,122760.0,122750.0,1.13929267]
[1760018052208,0.3608,122760.0,122750.0,0.38577267]
[1760018052407,0.4943271,122760.0,122750.0,0.38577267]
[1760018052611,0.3608,122760.0,122750.0,1.13925267]
[1760018052814,0.4422241,122770.0,122750.0,0.46720647]
[1760018053107,0.4129,122780.0,122770.0,0.08593]
[1760018053307,0.4129,122780.0,122770.0,0.83941]
[1760018053906,0.4129,122780.0,122770.0,1.13509267]
[1760018054209,0.4943163,122780.0,122770.0,1.13509267]
[1760018055007,0.4422139,122780.0,122770.0,0.38261267]
[1760018055210,0.3608,122780.0,122770.0,0.46403317]
[1760018055524,0.4422139,122780.0,122770.0,1.13609267]
[1760018056103,0.4422139,122780.0,122770.0,0.84041]
[1760018056307,0.5202739,122780.0,122770.0,0.001]
[1760018056506,1.21595657,122780.0,122770.0,1e-07]
[1760018057306,0.9202739,122780.0,122770.0,1e-07]
[1760018057711,0.1664505,122770.0,122760.0,0.75344]
[1760018057908,0.5272505,122770.0,122760.0,0.80782]
[1760018059011,0.5272505,122770.0,122750.0,0.39807625]
[1760018059012,0.08375,122760.0,122750.0,0.29568267]
[1760018059310,0.44455,122760.0,122750.0,1.04908267]
[1760018059509,0.44455,122760.0,122750.0,0.29568267]
[1760018059710,0.44455,122760.0,122750.0,1.10346267]
[1760018060310,0.44455,122760.0,122750.0,1.10342267]
[1760018061302,0.44455,122760.0,122750.0,1.20581625]
[1760018061707,0.44455,122760.0,122750.0,0.35006267]
[1760018061908,0.44455,122760.0,122750.0,0.29568267]
[1760018062109,0.44455,122760.0,122750.0,0.93048267]
[1760018062304,0.44455,122760.0,122740.0,0.39465604]
[1760018062511,0.1335338,122750.0,122740.0,0.15335337]
[1760018062728,6.181e-05,122750.0,122740.0,0.59559377]
[1760018062917,6.181e-05,122750.0,122740.0,0.99559377]
[1760018063117,0.3608,122770.0,122760.0,0.1673571]
[1760018063419,0.3608,122770.0,122760.0,0.9207171]
[1760018063613,0.4422205,122770.0,122760.0,0.38161267]
[1760018063917,0.3608,122780.0,122770.0,0.08593]
[1760018064216,0.4129,122780.0,122770.0,1.13497267]
[1760018064609,0.43892,122780.0,122770.0,0.35006267]
[1760018064911,0.43892,122780.0,122770.0,1.19337366]